[Event "15th Deltalift Open 2018"]
[Site "Halmstad"]
[Date "2018.05.12"]
[Round "8"]
[White "Crevatin, Leo"]
[Black "Danielsson, Fredrik"]
[Result "0-1"]
[ECO "A50"]
[WhiteElo "2251"]
[BlackElo "2117"]
[Annotator "NA"]
[PlyCount "50"]
[EventDate "2018.??.??"]
[EventType "swiss"]
[EventCountry "SWE"]
[SourceTitle "playchess.com"]
[Source "ChessBase"]
[SourceQuality "1"]
[TimeControl "1800+12"]

{[%evp 8,49,33,32767,32767,32767,32767,32767,32767,32767,-40,-17,-8,-86,-48,-208,32767,32767,32767,32767,22,-164,-194,-192,-164,-159,32767,-164,-222,-553,32767,32767,-923,32767,32767,32767,32767,32767,32767,-29985,32767,-29986,32767,-29994]} 1. d4 {[%emt 0:00:00]} Nf6 {[%emt 0:00:00]} 2. c4 {[%emt 0:00:00]} g6 {[%emt 0:00:00]} 3. f3 {[%emt 0:00:00]} e6 {[%emt 0:00:00]} 4. e4 {[%emt 0:00:00]} d5 {[%emt 0:00:00]} 5. cxd5 {[%emt 0:00:00]} exd5 {[%emt 0:00:00]} 6. Nc3 {[%emt 0:00:00]} dxe4 {[%emt 0:00:00]} 7. fxe4 {[%emt 0:00:00]} Bb4 {[%emt 0:00:00]} 8. Qd3 {[%emt 0:00:00]} O-O {[%emt 0:00:00]} 9. Bg5 {[%emt 0:00:00]} h6 {[%emt 0:00:00]} 10. Bxh6 {[%emt 0:00:00]} (10. Bxf6 $1 $11 Qxf6 11. Nf3) 10... Re8 {[%emt 0:00:00]} 11. e5 {[%emt 0:00:00]} (11. Bg5 $15) 11... Bf5 {[%emt 0:00:00]} 12. Qc4 {[%emt 0:00:00]} Nd5 {[%emt 0:00:00]} 13. Nf3 {[%emt 0:00:00]} Nc6 {[%emt 0:00:00]} 14. O-O-O $2 {[%emt 0:00:00]} (14. Bg5 $1 $14 Qd7 15. Kf2) 14... Nxc3 {[%emt 0:00:00]} 15. bxc3 {[%emt 0:00:00]} Ba3+ {[%emt 0:00:00]} 16. Kd2 {[%emt 0:00:00]} Nxe5 {[%emt 0:02:26]} 17. Nxe5 {[%emt 0:00:00]} Rxe5 {[%emt 0:00:00]} 18. Bf4 $2 {[%emt 0:00:00]} (18. Bd3 {nothing else works.} Bxd3 19. Qxd3) 18... Re4 {[%emt 0:06:27]} 19. g3 {[%emt 0:00:00] [#]} b5 $1 {[%emt 0:16:15]} 20. Qb3 {[%emt 0:00:38]} Rxd4+ {[%emt 0:02:23]} 21. cxd4 {[%emt 0:00:16]} Qxd4+ {[%emt 0:00:00]} 22. Ke1 {[%emt 0:01:18]} Re8+ {[%emt 0:01:24]} 23. Be2 {[%emt 0:00:03]} Qe4 {[%emt 0:03:38]} 24. Qe3 {[%emt 0:04:17]} Qxh1+ {[%emt 0:00:54]} 25. Kd2 {[%emt 0:00:27]} Bb4+ {[%emt 0:00:31]} 0-1

[Event "15th Deltalift Open 2018"]
[Site "Halmstad"]
[Date "2018.05.12"]
[Round "8"]
[White "Haugli, Petter"]
[Black "Bohman Karlholm, Adrian"]
[Result "1-0"]
[ECO "A22"]
[WhiteElo "2245"]
[BlackElo "2019"]
[Annotator "NA"]
[PlyCount "89"]
[EventDate "2018.??.??"]
[EventType "swiss"]
[EventCountry "SWE"]
[SourceTitle "playchess.com"]
[Source "ChessBase"]
[SourceQuality "1"]
[TimeControl "1800+12"]

{[%evp 8,88,2,12,16,0,0,32767,32767,32767,32767,32767,41,33,15,19,18,8,46,-13,19,0,13,0,29,17,23,21,32767,50,32767,32767,32767,32767,52,32767,32767,20,39,32767,32767,32767,54,45,85,32767,75,66,32767,32767,224,224,228,32767,232,221,205,192,284,291,300,32767,280,298,32767,32767,32767,424,32767,32767,32767,32767,32767,32767,32767,32767,32767,361,32767,32767,5089,12841,5077]} 1. c4 {[%emt 0:00:00]} e5 {[%emt 0:00:00]} 2. Nc3 {[%emt 0:00:00]} Nf6 {[%emt 0:00:00]} 3. g3 {[%emt 0:00:00]} d5 {[%emt 0:00:00]} 4. cxd5 {[%emt 0:00:00]} Nxd5 {[%emt 0:00:00]} 5. Bg2 {[%emt 0:00:00]} Nb6 {[%emt 0:00:00]} 6. d3 {[%emt 0:00:00]} Be7 {[%emt 0:00:00] LiveBook: 335 Games} 7. Be3 {[%emt 0:00:00]} O-O {[%emt 0:00:00]} 8. Rc1 {[%emt 0:00:00]} Re8 {[%emt 0:00:00] A22: English Opening: 1...e5 2 Nc3 Nf6} 9. Qc2 {[%emt 0:00:00]} c6 {[%emt 0:00:00]} 10. Nf3 {[%emt 0:00:00]} Bf8 $146 {[%emt 0:00:00]} ({Predecessor:} 10... Nd5 11. Bd2 Bf8 12. O-O h6 13. Nxd5 Qxd5 14. Bc3 Qd6 15. d4 e4 16. Ne5 {1-0 (49) Giri,A (2793)-Ssegwanyi,A (2357) Baku 2015}) 11. O-O {[%emt 0:00:00]} Na6 {[%emt 0:00:00]} 12. a3 {[%emt 0:00:00]} f6 {[%emt 0:00:00]} 13. Ne4 {[%emt 0:00:00]} (13. d4 $14) 13... Be6 {[%emt 0:00:00]} 14. b4 {[%emt 0:00:00]} Qd7 {[%emt 0:00:00]} 15. Rfd1 {[%emt 0:00:00]} Rad8 {[%emt 0:00:00]} 16. Bc5 Qf7 {[%emt 0:00:00]} 17. Rb1 {[%emt 0:00:00]} Be7 {[%emt 0:00:00]} 18. Bxe7 {[%emt 0:00:00]} Rxe7 {[%emt 0:00:00]} 19. Nc5 {[%emt 0:00:00]} Nxc5 {[%emt 0:00:00]} 20. bxc5 {[%emt 0:00:00]} Nc8 {[%emt 0:00:00]} 21. Rb4 {[%emt 0:00:00]} Rc7 {[%emt 0:00:00]} 22. Rc1 {[%emt 0:00:00]} Ne7 {[%emt 0:01:52]} 23. Qa4 {[%emt 0:00:00]} Nd5 {[%emt 0:01:07]} 24. Rbb1 {[%emt 0:00:00]} a6 {[%emt 0:00:35]} 25. Qa5 {[%emt 0:00:00]} Qd7 {[%emt 0:00:57]} 26. Rb2 {[%emt 0:00:00]} Ne7 {[%emt 0:02:32]} 27. Rcb1 {[%emt 0:00:00]} Bd5 {[%emt 0:01:31]} 28. Rxb7 {[%emt 0:00:00]} Rxb7 {[%emt 0:03:08]} 29. Rxb7 {[%emt 0:00:00]} Qxb7 {[%emt 0:00:44]} 30. Qxd8+ {[%emt 0:00:00]} Kf7 {[%emt 0:00:00]} 31. Qb6 {[%emt 0:00:00]} Qc8 {[%emt 0:00:40]} 32. Qa7 {[%emt 0:00:00]} e4 {[%emt 0:04:00]} 33. dxe4 {[%emt 0:00:00]} Bxe4 {[%emt 0:00:10]} 34. Ng5+ {[%emt 0:02:04]} fxg5 {[%emt 0:00:00]} 35. Bxe4 {[%emt 0:00:00]} Qe6 {[%emt 0:01:39]} 36. Bd3 {[%emt 0:00:48]} Qe5 {[%emt 0:01:52]} 37. Qxa6 {[%emt 0:02:10]} Qxc5 {[%emt 0:00:19]} 38. Qc4+ {[%emt 0:00:51]} Qxc4 {[%emt 0:00:00]} 39. Bxc4+ {[%emt 0:00:00]} Ke8 {[%emt 0:00:34]} 40. f4 {[%emt 0:00:40]} gxf4 {[%emt 0:00:08]} 41. gxf4 {[%emt 0:00:00]} Nf5 {[%emt 0:00:19]} 42. Bd3 {[%emt 0:03:08]} g6 {[%emt 0:00:28]} 43. Bxf5 {[%emt 0:01:35]} gxf5 $18 {[%emt 0:00:00]} 44. Kf2 {[%emt 0:00:00]} Kd7 {[%emt 0:00:00]} 45. Ke3 {[%emt 0:00:00]} 1-0

[Event "15th Deltalift Open 2018"]
[Site "Halmstad"]
[Date "2018.05.12"]
[Round "8"]
[White "Tuomainen, Felix"]
[Black "Johnson, Daniel"]
[Result "1/2-1/2"]
[ECO "D37"]
[WhiteElo "2211"]
[BlackElo "2028"]
[Annotator "NA"]
[PlyCount "126"]
[EventDate "2018.??.??"]
[EventType "swiss"]
[EventCountry "SWE"]
[SourceTitle "playchess.com"]
[Source "ChessBase"]
[SourceQuality "1"]
[TimeControl "1800+12"]

{[%evp 14,126,34,32767,31,30,41,0,6,20,32767,32767,18,8,27,28,24,27,32767,32767,32767,0,32767,32767,32767,32767,32767,32767,32767,0,0,-42,14,0,26,32767,0,0,0,32767,32767,32767,2,0,8,32767,1,32767,32767,-25,32767,32767,25,32767,53,82,60,32767,32767,141,170,42,57,58,82,-127,32767,-131,-100,-139,32767,32767,-11,32767,32767,32767,0,32767,32767,0,8,0,0,32767,32767,0,32767,0,0,0,32767,32767,32767,32767,32767,32767,-7,32767,-35,32767,32767,32767,32767,32767,32767,32767,32767,32767,-39,32767,32767,32767,32767,32767,-1319]} 1. d4 {[%emt 0:00:00]} d5 {[%emt 0:00:00]} 2. c4 {[%emt 0:00:00]} e6 {[%emt 0:00:00]} 3. Nc3 {[%emt 0:00:00]} Be7 {[%emt 0:00:00]} 4. Nf3 {[%emt 0:00:00]} Nf6 {[%emt 0:00:00]} 5. Bf4 {[%emt 0:00:00]} O-O {[%emt 0:00:00]} 6. e3 {[%emt 0:00:00]} b6 {[%emt 0:00:00]} 7. Bd3 {[%emt 0:00:00]} Bb7 {[%emt 0:00:00]} 8. cxd5 {[%emt 0:00:00]} exd5 {[%emt 0:00:00]} 9. O-O {[%emt 0:00:00]} Nbd7 {[%emt 0:00:00] LiveBook: 12 Games D37: Queen's Gambit Declined: 5 Bf4} (9... c5 10. Ne5 Na6 11. Bb5 Qc8 12. Bg5 Rd8 13. Qa4 Nb8 14. f4 c4 15. Qd1 a6 16. Ba4 b5 17. Bc2 Qc7 18. Rf3 {1-0 (34) Andreikin,D (2720)-Johannessen,L (2503) Skopje 2015}) 10. Nb5 {[%emt 0:00:00]} c5 {[%emt 0:00:00]} 11. Nd6 {[%emt 0:00:00]} Bxd6 {[%emt 0:00:00]} 12. Bxd6 {[%emt 0:00:00]} Re8 {[%emt 0:00:00]} 13. b3 $146 {[%emt 0:00:00]} ({Predecessor:} 13. Rc1 c4 14. Bf5 Nf8 15. Bg3 Bc8 16. Bb1 Bg4 {0-1 (30) Mumdgan,S (2220)-Serditykh,O (1953) Sochi 2017}) 13... Ne4 {[%emt 0:00:00]} 14. Bf4 {[%emt 0:00:00]} a6 {[%emt 0:00:00]} 15. Rc1 {[%emt 0:00:00]} b5 {[%emt 0:00:00]} 16. dxc5 {[%emt 0:00:00]} Ndxc5 {[%emt 0:00:00]} 17. b4 {[%emt 0:00:00]} Nxd3 {[%emt 0:01:02]} 18. Qxd3 {[%emt 0:00:00]} Rc8 {[%emt 0:01:47]} 19. Nd4 {[%emt 0:00:00]} Rc4 {[%emt 0:07:38]} 20. f3 {[%emt 0:00:00]} Qc8 {[%emt 0:01:34]} 21. Rxc4 {[%emt 0:00:00]} (21. Rce1 $14 Rc3 22. Qe2) 21... dxc4 {[%emt 0:02:27]} 22. Qc2 {[%emt 0:00:00]} Nf6 {[%emt 0:02:56]} ({Better is} 22... g5 $1 $15) 23. Nf5 {[%emt 0:00:00]} Qe6 {[%emt 0:06:17]} 24. Nd6 {[%emt 0:00:00]} Re7 {[%emt 0:00:59]} 25. Rd1 {[%emt 0:00:00]} Bc6 {[%emt 0:02:20]} 26. Nf5 {[%emt 0:00:00]} Rd7 {[%emt 0:00:20]} 27. Nd4 {[%emt 0:00:00]} Qe8 $1 {[%emt 0:00:22]} 28. e4 {[%emt 0:00:00]} Bb7 {[%emt 0:02:54]} 29. a4 {[%emt 0:00:00]} Qd8 {[%emt 0:02:32]} 30. Be3 {[%emt 0:00:00]} Nh5 {[%emt 0:01:43]} 31. g3 {[%emt 0:00:00]} ({White should play} 31. Rd2 $16) 31... Nf6 {[%emt 0:00:16]} 32. Rd2 {[%emt 0:00:00]} Qe7 {[%emt 0:00:51]} 33. Qc3 {[%emt 0:00:00] [#]} Bxe4 $1 {[%emt 0:00:17]} 34. fxe4 {[%emt 0:00:00]} Qxe4 {[%emt 0:00:13]} (34... Nxe4 $11 35. Nf5 Qf8 36. Rxd7 Nxc3 37. Ne7+ Kh8 38. axb5 a5 39. bxa5 h6) 35. Bf2 {[%emt 0:00:00]} Qb1+ {[%emt 0:00:08]} 36. Kg2 {[%emt 0:00:00]} h6 {[%emt 0:00:13] [#]} 37. axb5 {[%emt 0:00:00]} (37. Re2 $1 $16) 37... Ne4 {[%emt 0:00:05]} 38. Qc2 {[%emt 0:00:00]} Nxd2 {[%emt 0:00:00]} 39. Qxd2 $2 {[%emt 0:00:00]} (39. Qxb1 $14 Nxb1 40. bxa6) 39... Qe4+ {[%emt 0:00:03]} 40. Kg1 {[%emt 0:00:00] [#]} axb5 $1 {[%emt 0:00:20]} 41. Qe3 {[%emt 0:00:00]} Qxe3 {[%emt 0:00:00]} 42. Bxe3 {[%emt 0:00:00]} Rd5 {[%emt 0:00:00]} 43. Kf2 {[%emt 0:00:00]} f5 {[%emt 0:00:00]} 44. Nc6 {[%emt 0:00:00]} Rd3 {[%emt 0:00:00]} (44... Kf7 $17) 45. Ne7+ {[%emt 0:00:00]} Kh7 {[%emt 0:00:00]} 46. Nxf5 {[%emt 0:00:00]} Rb3 {[%emt 0:00:00]} 47. Bc5 $1 {[%emt 0:00:00]} Rb2+ {[%emt 0:00:00]} 48. Ke3 {[%emt 0:00:00]} Rxh2 {[%emt 0:00:00]} 49. Nd4 {[%emt 0:00:00]} Rh3 {[%emt 0:00:00]} 50. Bd6 {[%emt 0:00:00]} Rh5 {[%emt 0:00:00]} 51. Ke4 {[%emt 0:00:00]} Rg5 {[%emt 0:01:01]} 52. Be5 {[%emt 0:00:00]} h5 {[%emt 0:01:03]} 53. Bf4 {[%emt 0:00:00]} Rg4 {[%emt 0:00:03]} 54. Nf3 {[%emt 0:00:00] [#]} Rg6 $2 {[%emt 0:00:32]} (54... c3 $1 $19 {[%cal Rc3c2]} 55. Ke3 {[#]} h4 $1 {[%mdl 512]}) 55. Ng5+ {[%emt 0:00:00]} Kg8 {[%emt 0:00:00]} 56. Kd5 {[%emt 0:00:00]} Rf6 {[%emt 0:00:19]} 57. Be5 {[%emt 0:00:00]} Rf5 {[%emt 0:00:18]} 58. Ne4 {[%emt 0:00:00]} g5 {[%emt 0:00:18]} 59. Ke6 {[%emt 0:00:00]} Rf3 {[%emt 0:00:13]} 60. Kd5 {[%emt 0:00:00]} Rb3 $2 {[%emt 0:00:00]} (60... h4 $19 61. gxh4 gxh4) 61. Kc5 {[%emt 0:00:00]} h4 {[%emt 0:00:00]} 62. gxh4 {[%emt 0:00:00]} gxh4 {[%emt 0:00:00]} 63. Nd2 {[%emt 0:00:00]} h3 $19 1/2-1/2

[Event "15th Deltalift Open 2018"]
[Site "Halmstad"]
[Date "2018.05.12"]
[Round "8"]
[White "Nilsson, Patrik"]
[Black "Rydstrom, Tom"]
[Result "1/2-1/2"]
[ECO "B22"]
[WhiteElo "2195"]
[BlackElo "2324"]
[Annotator "NA"]
[PlyCount "131"]
[EventDate "2018.??.??"]
[EventType "swiss"]
[EventCountry "SWE"]
[SourceTitle "playchess.com"]
[Source "ChessBase"]
[SourceQuality "1"]
[TimeControl "1800+12"]

{[%evp 8,129,18,26,25,32767,32767,32767,32767,7,54,47,68,38,52,0,18,17,23,-8,0,-20,-10,-11,-10,-12,-6,-21,-3,-16,32767,0,32767,32767,32767,32767,7,6,32767,0,0,0,32767,32767,32767,-4,0,0,0,-4,0,-1,0,0,32767,-10,-5,32767,32767,-39,32767,-65,-12,32767,0,0,32767,32767,0,32767,32767,32767,32767,-11,-2,-49,-91,-104,32767,32767,-155,32767,0,32767,32767,0,0,32767,32767,32767,32767,32767,32767,0,0,8,0,0,20,0,32767,12,24,32767,0,54,187,32767,283,14,32767,8,31,0,0,8,32767,0,32767,0,0,0,0,0]} 1. e4 {[%emt 0:00:00]} c5 {[%emt 0:00:00]} 2. c3 {[%emt 0:00:00]} Nf6 {[%emt 0:00:00]} 3. e5 {[%emt 0:00:00]} Nd5 {[%emt 0:00:00]} 4. Nf3 {[%emt 0:00:00]} Nc6 {[%emt 0:00:00]} 5. Bc4 {[%emt 0:00:00]} Nb6 {[%emt 0:00:00]} 6. Bb3 {[%emt 0:00:00]} d5 {[%emt 0:00:00]} 7. exd6 {[%emt 0:00:00]} Qxd6 {[%emt 0:00:00]} 8. d4 {[%emt 0:00:00] LiveBook: 45 Games B22: Sicilian: 2 c3} (8. Na3 Be6 9. d4 Bxb3 10. Qxb3 cxd4 11. Nb5 Qd7 12. Nbxd4 Nxd4 13. Nxd4 e6 14. Bf4 Bd6 15. Bxd6 Qxd6 {½-½ (32) Abasov,N (2587)-Nepomniachtchi,I (2733) Antalya 2017}) 8... g6 $146 {[%emt 0:00:00]} ({Predecessor:} 8... cxd4 9. O-O Be6 10. Bxe6 Qxe6 11. Nxd4 Nxd4 12. Qxd4 Rd8 13. Qf4 g6 14. Be3 Bg7 15. Na3 O-O 16. Rfe1 Nd5 17. Qc4 a6 18. Bd4 Qf5 19. Bxg7 Kxg7 20. Qd4+ f6 21. c4 {½-½ (42) Savchenko,B (2559)-Timofeev,A (2603) Kazan 2014}) 9. dxc5 {[%emt 0:00:00]} Qxc5 {[%emt 0:00:00]} 10. Be3 {[%emt 0:00:00]} Qh5 {[%emt 0:00:00]} 11. Ng5 {[%emt 0:00:00]} Qxd1+ {[%emt 0:00:00]} 12. Kxd1 {[%emt 0:00:00]} e6 $1 {[%emt 0:00:00]} 13. Nd2 {[%emt 0:00:00]} Be7 {[%emt 0:00:00]} 14. f4 {[%emt 0:00:00]} O-O {[%emt 0:00:00]} 15. Ke2 {[%emt 0:00:00]} Nd5 {[%emt 0:00:00]} 16. Bxd5 {[%emt 0:00:00]} exd5 {[%emt 0:00:00]} 17. Ngf3 {[%emt 0:00:00]} Re8 {[%emt 0:00:00]} 18. Nb3 {[%emt 0:00:00]} Bf5 {[%emt 0:00:00]} 19. Kf2 {[%emt 0:00:00]} Bf8 {[%emt 0:00:00]} 20. Rhe1 {[%emt 0:00:00]} Be4 {[%emt 0:00:00]} 21. g3 {[%emt 0:00:00]} h6 {[%emt 0:00:00]} 22. Nfd4 {[%emt 0:00:00]} Nxd4 {[%emt 0:00:00]} 23. Bxd4 {[%emt 0:00:00]} Rec8 {[%emt 0:00:00]} 24. Be3 {[%emt 0:00:00]} b5 {[%emt 0:00:00]} 25. a3 {[%emt 0:00:00]} a5 {[%emt 0:00:00]} 26. Nd2 {[%emt 0:00:00]} Bf5 {[%emt 0:00:00]} 27. Bd4 {[%emt 0:00:00]} Rab8 {[%emt 0:00:07]} 28. b4 {[%emt 0:02:03]} a4 {[%emt 0:06:13]} 29. Nf3 {[%emt 0:00:24]} Rb7 {[%emt 0:00:26]} 30. Re3 {[%emt 0:01:56]} Be4 {[%emt 0:09:48]} 31. Ne5 {[%emt 0:01:55]} Bg7 {[%emt 0:00:31]} 32. Rd1 {[%emt 0:00:01]} g5 {[%emt 0:00:41]} 33. Rg1 {[%emt 0:06:29]} Rbc7 {[%emt 0:01:21]} 34. Ke2 {[%emt 0:01:33]} (34. fxg5 $11 hxg5 35. h4) 34... f6 {[%emt 0:04:47]} 35. Nd3 {[%emt 0:00:07]} Re8 {[%emt 0:05:22]} 36. Nc5 {[%emt 0:00:18]} Rce7 {[%emt 0:00:18]} 37. Kd2 {[%emt 0:00:09]} Kf7 {[%emt 0:02:53]} 38. Rge1 {[%emt 0:00:57]} gxf4 {[%emt 0:00:05]} 39. gxf4 {[%emt 0:00:00]} h5 {[%emt 0:00:00]} 40. Rh3 {[%emt 0:02:33]} Bh6 {[%emt 0:05:05]} 41. Nxe4 {[%emt 0:07:09]} Bxf4+ {[%emt 0:00:10]} ({Much worse is} 41... Rxe4 $6 42. Rxe4 dxe4 43. Ke3 $11) (41... dxe4 $6 42. Rf1 $14) 42. Kd1 {[%emt 0:00:00]} Rxe4 {[%emt 0:00:00]} 43. Rxe4 {[%emt 0:00:00]} dxe4 {[%emt 0:00:00]} ({Don't take} 43... Rxe4 44. Rxh5 Be5 45. Bxe5 $11) 44. Rxh5 {[%emt 0:00:00]} e3 $2 {[%emt 0:00:00]} (44... Be5 $19 45. Rh7+ Kg6) 45. Ke2 {[%emt 0:00:00]} Kg6 {[%emt 0:00:00]} 46. Rh3 {[%emt 0:00:00]} (46. Rxb5 $14 Rh8 47. h4 Rxh4 48. Bxe3) 46... Kf5 {[%emt 0:00:00]} 47. Bxe3 {[%emt 0:00:00]} Kg4 {[%emt 0:00:00]} 48. Rf3 {[%emt 0:00:00]} Bxh2 {[%emt 0:00:00]} 49. Rxf6 {[%emt 0:00:00]} Be5 {[%emt 0:00:00]} 50. Rg6+ {[%emt 0:00:00]} Kf5 $1 {[%emt 0:00:00]} 51. Rg5+ {[%emt 0:00:00]} Ke4 {[%emt 0:00:00]} 52. Rg4+ {[%emt 0:00:00]} Kf5 {[%emt 0:00:00]} 53. Rg5+ {[%emt 0:00:00]} Kf6 {[%emt 0:01:37]} 54. Rh5 {[%emt 0:00:00]} ({Better is} 54. Kd3 $14) 54... Bxc3 {[%emt 0:00:00]} 55. Kd3 {[%emt 0:00:00]} Be5 {[%emt 0:00:57]} 56. Bd4 {[%emt 0:00:00]} Bxd4 {[%emt 0:00:00]} 57. Kxd4 {[%emt 0:00:00]} Rd8+ {[%emt 0:00:06]} (57... Re1 $16 {is a better defense.} 58. Kc5 (58. Rxb5 Ra1 $14) 58... Re3) 58. Ke4 $2 {[%emt 0:00:00]} (58. Kc5 $18) 58... Rd1 {[%emt 0:00:39]} 59. Rxb5 {[%emt 0:00:00]} Ra1 $1 {[%emt 0:00:00]} 60. Ra5 {[%emt 0:00:00]} Rxa3 {[%emt 0:00:00]} 61. Kd5 {[%emt 0:00:00]} Ra1 {[%emt 0:00:00]} 62. Kc4 {[%emt 0:00:00]} Ke6 {[%emt 0:00:00]} 63. b5 {[%emt 0:00:00]} Kd6 {[%emt 0:00:00]} 64. Ra6+ {[%emt 0:00:00]} Kc7 $11 {[%emt 0:00:00]} 65. Kb4 {[%emt 0:00:00]} Kb7 {[%emt 0:00:00]} 66. Rxa4 {[%emt 0:00:00]} 1/2-1/2

[Event "15th Deltalift Open 2018"]
[Site "Halmstad"]
[Date "2018.05.12"]
[Round "8"]
[White "Sorensen, Hampus"]
[Black "Neretljak, Nedzad"]
[Result "1-0"]
[ECO "A52"]
[WhiteElo "2176"]
[BlackElo "2099"]
[Annotator "NA"]
[PlyCount "147"]
[EventDate "2018.??.??"]
[EventType "swiss"]
[EventCountry "SWE"]
[SourceTitle "playchess.com"]
[Source "ChessBase"]
[SourceQuality "1"]
[TimeControl "1800+12"]

1. d4 {[%emt 0:00:00]} Nf6 {[%emt 0:00:00]} 2. c4 {[%emt 0:00:00]} e5 {[%emt 0:00:00]} 3. dxe5 {[%emt 0:00:00]} Ng4 {[%emt 0:00:00]} 4. e3 {[%emt 0:00:00]} Nxe5 {[%emt 0:00:00]} 5. Nc3 {[%emt 0:00:00] A52: Budapest Gambit} (5. Nh3 Bb4+ 6. Bd2 a5 7. Nf4 d6 8. Nc3 O-O 9. Be2 Re8 10. O-O Nbd7 11. Qc2 Nf6 12. Rad1 c6 13. Na4 Bxd2 14. Rxd2 {1-0 (49) Wojtaszek,R (2727)-Ivanchuk,V (2710) Huaian 2016}) 5... g6 {[%emt 0:00:00]} 6. f4 {[%emt 0:00:00]} Nec6 {[%emt 0:00:00]} 7. Nf3 {[%emt 0:00:00]} Bg7 {[%emt 0:00:00]} 8. Bd3 {[%emt 0:00:00]} d6 {[%emt 0:00:00]} 9. Bd2 {[%emt 0:00:00]} Be6 $146 {[%emt 0:00:00]} ({Predecessor:} 9... Nd7 10. a3 a5 11. O-O O-O 12. Rb1 {1-0 (27) Elsness,F (2458)-Tisdall,J (2426) Norway 2010}) 10. a3 {[%emt 0:00:00]} a5 {[%emt 0:00:00]} 11. Ng5 {[%emt 0:00:00]} Nd7 {[%emt 0:00:00]} 12. Nxe6 {[%emt 0:00:00]} fxe6 {[%emt 0:00:00]} 13. O-O {[%emt 0:00:00]} O-O {[%emt 0:00:00]} 14. Rb1 {[%emt 0:00:00]} Nf6 {[%emt 0:00:00]} 15. Kh1 {[%emt 0:00:00]} Kh8 {[%emt 0:00:00]} 16. Ne4 {[%emt 0:00:00]} Nxe4 {[%emt 0:00:00]} 17. Bxe4 {[%emt 0:00:00]} e5 {[%emt 0:00:00]} 18. f5 {[%emt 0:00:00]} Qh4 {[%emt 0:00:00]} 19. Qc2 {[%emt 0:00:00]} g5 {[%emt 0:00:00]} 20. g3 {[%emt 0:00:00]} Qh5 {[%emt 0:00:00]} 21. Bc3 {[%emt 0:00:00]} g4 {[%emt 0:00:00]} 22. b4 {[%emt 0:02:39]} axb4 {[%emt 0:00:00]} 23. axb4 {[%emt 0:00:00]} Qg5 {[%emt 0:00:00]} 24. Bd2 {[%emt 0:02:03]} h5 {[%emt 0:00:00]} (24... Rab8 $16 {might work better.} 25. Rbd1 Ne7) 25. b5 {[%emt 0:06:24]} Nd8 {[%emt 0:00:00]} 26. c5 {[%emt 0:04:58]} h4 {[%emt 0:00:00]} 27. cxd6 {[%emt 0:01:45]} cxd6 {[%emt 0:00:00]} 28. Kg1 {[%emt 0:01:06]} Qh5 {[%emt 0:00:00]} 29. Bg2 {[%emt 0:02:51]} Nf7 {[%emt 0:00:00]} 30. f6 {[%emt 0:05:59]} Bh6 {[%emt 0:00:00]} 31. Rf5 {[%emt 0:00:21]} Ng5 {[%emt 0:00:00]} 32. e4 {[%emt 0:02:07]} hxg3 {[%emt 0:00:00]} 33. hxg3 {[%emt 0:00:01]} Nh3+ {[%emt 0:05:35]} 34. Bxh3 {[%emt 0:02:01]} Qxh3 {[%emt 0:00:17]} 35. Bxh6 {[%emt 0:00:04]} Qxh6 {[%emt 0:00:24]} 36. Qh2 {[%emt 0:00:56]} Qxh2+ {[%emt 0:00:00]} 37. Kxh2 {[%emt 0:00:00]} Ra2+ {[%emt 0:04:09]} 38. Kg1 {[%emt 0:00:00]} Kh7 {[%emt 0:01:07]} 39. Rd1 {[%emt 0:00:14]} Rb2 {[%emt 0:01:09]} 40. Rxd6 {[%emt 0:00:42]} Ra8 $2 {[%emt 0:05:13]} (40... Rb1+ $11 {and Black stays safe.} 41. Kg2 Rb2+ 42. Kf1 Rxb5) 41. Rd7+ {[%emt 0:00:00]} Kg6 {[%emt 0:00:00]} 42. Rg7+ {[%emt 0:00:00]} Kh6 {[%emt 0:00:00]} 43. Rxg4 {[%emt 0:00:00]} Rb1+ {[%emt 0:00:00]} 44. Kg2 {[%emt 0:00:00]} Ra2+ {[%emt 0:00:00]} 45. Rf2 {[%emt 0:00:00]} Rxf2+ {[%emt 0:00:00]} 46. Kxf2 {[%emt 0:00:00]} Rb2+ {[%emt 0:00:00]} 47. Kg1 {[%emt 0:00:00]} Rb1+ {[%emt 0:00:00]} 48. Kg2 {[%emt 0:00:00]} Rb2+ {[%emt 0:00:00]} 49. Kh3 {[%emt 0:00:00]} Rf2 {[%emt 0:00:00]} 50. Rg7 {[%emt 0:00:00]} b6 {[%emt 0:00:00]} 51. Re7 {[%emt 0:00:00]} Rxf6 {[%emt 0:00:00]} 52. Rxe5 {[%emt 0:00:00]} Kg6 {[%emt 0:00:00]} 53. Kg4 {[%emt 0:00:00]} Rd6 {[%emt 0:00:00]} 54. Rd5 {[%emt 0:00:00]} Re6 {[%emt 0:00:00]} 55. e5 {[%emt 0:00:00]} Kf7 {[%emt 0:00:00]} 56. Kf5 {[%emt 0:00:00]} Rh6 {[%emt 0:00:00]} 57. g4 {[%emt 0:00:00]} Rh1 {[%emt 0:00:00]} 58. Rd7+ {[%emt 0:00:00]} Ke8 {[%emt 0:00:00]} 59. Rb7 {[%emt 0:00:00]} Rf1+ {[%emt 0:00:00]} 60. Ke6 {[%emt 0:00:00]} Kd8 {[%emt 0:00:00]} 61. Rxb6 {[%emt 0:00:00]} Rg1 {[%emt 0:00:00]} 62. Rb8+ {[%emt 0:00:00]} Kc7 {[%emt 0:00:00]} 63. Rg8 {[%emt 0:00:00]} Rb1 {[%emt 0:00:00]} 64. g5 {[%emt 0:00:00]} Rxb5 {[%emt 0:00:00]} 65. g6 {[%emt 0:00:00]} Rb6+ {[%emt 0:00:00]} 66. Ke7 {[%emt 0:00:00]} Rb7 {[%emt 0:00:00]} 67. e6 {[%emt 0:00:00]} Rb1 {[%emt 0:00:00]} 68. Ra8 {[%emt 0:00:00]} Rg1 {[%emt 0:00:00]} 69. Kf7 {[%emt 0:00:00]} Rf1+ {[%emt 0:00:00]} 70. Kg8 {[%emt 0:00:00]} Kd6 {[%emt 0:00:00]} 71. g7 {[%emt 0:00:00]} Ke7 {[%emt 0:00:00]} 72. Ra7+ {[%emt 0:00:00]} Kxe6 {[%emt 0:00:00]} 73. Ra6+ {[%emt 0:00:00]} Ke7 {[%emt 0:00:00]} 74. Kh7 {[%emt 0:00:00]} 1-0